Cogmind - Beta 13 @@@ ROGUE MODE // 2024.03.23 @ 12:40:03 Player: Oldman Pu Result: Destroyed self via exploding Fusion Modulator Performance ------------- Evolutions (0) 0 Regions Visited (1) 200 Robots Destroyed (12) 60 Value Destroyed (270) 270 Prototype IDs (0) 0 Alien Tech Used (0) 0 Bonus (0) 0 TOTAL SCORE: 530 Bonus ------- None Cogmind --------- Core Integrity 0/250 Matter 219/300 Energy 250/250 System Corruption 0% Temperature Cool (12) Movement Rolling (90) Location -10/Materials Parts ------- > --- POWER (1) -------- Ion Engine > --- PROPULSION (2) --- Wheel Compact Wheel > --- UTILITY (2) ------ Improved Heat Sink Medium Storage Unit > --- WEAPON (2) ------- Improved Light Cannon Improved Light Cannon > --- INVENTORY (10) --- Ion Engine Light Ion Engine Light Ion Engine Compact Wheel Medium Battery (150) Improved Light Cannon Improved Light Cannon Peak State ------------ > --- POWER ------------ Ion Engine > --- PROPULSION ------- Compact Wheel Compact Wheel > --- UTILITY ---------- Improved Heat Sink Medium Storage Unit > --- WEAPON ----------- Improved Light Cannon Improved Light Cannon > --- INVENTORY -------- Light Ion Engine Light Ion Engine Medium Battery [Rating: 11] Favorites ----------- Power Ion Engine Engine Ion Engine Propulsion Compact Wheel Wheel Compact Wheel Utility Medium Storage Unit Device Improved Heat Sink Storage Medium Storage Unit Protection Weapon Shielding Weapon Improved Light Cannon Energy Gun Medium Laser Ballistic Gun Light Assault Rifle Ballistic Cannon Improved Light Cannon Build | -11 -10 ------- Run | Yrd Mat Slots Evolved . | . . Power . | . . Propulsion . | . . Utility . | . . Weapon . | . . Parts Attached 16 | 6 10 Power 3 | 1 2 Engine 3 | 1 2 Core . | . . Reactor . | . . Propulsion 4 | 2 2 Treads . | . . Leg . | . . Wheel 4 | 2 2 Hover . | . . Flight . | . . Utility 4 | 1 3 Device 1 | . 1 Storage 2 | 1 1 Processor . | . . Hackware . | . . Protection 1 | . 1 Artifact . | . . Weapon 5 | 2 3 Energy Gun 1 | 1 . Energy Cannon . | . . Ballistic Gun 2 | 1 1 Ballistic Cannon 2 | . 2 Launcher . | . . Special Weapon . | . . Impact Weapon . | . . Slashing Weapon . | . . Piercing Weapon . | . . Special Melee Weapon . | . . Unidentified Prototypes . | . . Parts Lost 1 | . 1 Power 1 | . 1 Propulsion . | . . Utility . | . . Weapon . | . . Highest Loss Streak 1 | . 1 To Critical Strikes . | . . Average Slot Usage (%) 96 | . 96 Engine 13 | . 13 Wheel 28 | . 28 Device 9 | . 9 Storage 14 | . 14 Protection 3 | . 3 Energy Gun 6 | . 6 Ballistic Gun 6 | . 6 Ballistic Cannon 15 | . 15 Naked Turns . | . . Heaviest Build 24 | 13 24 Greatest Support 32 | 32 32 Greatest Overweight (x) 1 | 1 . Average Overweight (x) . | . . Largest Inventory Capacity 10 | 8 10 Average Capacity 9 | 7 9 Most Carried 7 | . 7 Average Carried 3 | . 3 Final Capacity 10 | 8 10 Final Carried 7 | . 7 Class Distribution -------------------- 100% | Mutant Dominant Class ---------------- Mutant | -10/Materials Resources | -11 -10 ----------- Run | Yrd Mat Matter Collected 463 | 238 225 Remotely . | . . Salvage Created 301 | . 301 Parts 23 | . 23 Haulers Intercepted 1 | . 1 Recyclers Shooed 1 | . 1 Parts Field Recycled . | . . Retrieved Matter . | . . Parts Self-Destructed . | . . Prevented . | . . Kills | -11 -10 ------- Run | Yrd Mat Combat Hostiles Destroyed 6 | . 6 Guns 2 | . 2 Cannons 4 | . 4 Classes Destroyed 5 | . 5 Worker 2 | . 2 Builder 2 | . 2 Hauler 1 | . 1 Watcher 1 | . 1 Grunt 6 | . 6 Best Kill Streak 4 | . 4 Combat Bots Only 2 | . 2 Max Kills in Single Turn 1 | . 1 Gunslinging . | . . Exploded . | . . Melee . | . . Uniques/NPCs Destroyed . | . . Combat | -11 -10 -------- Run | Yrd Mat Hostile Shots Fired 59 | . 59 Missed 17 | . 17 Damage Taken 696 | . 696 Core 299 | . 299 Absorbed by Shields . | . . Redirected to Shielding 34 | . 34 Core Remaining (%) 100 | 100 . Volleys Fired 49 | . 49 Largest 2 | . 2 Hottest 78 | . 78 Shots Fired 91 | . 91 Gun 51 | . 51 Cannon 40 | . 40 Launcher . | . . Special . | . . Kinetic 69 | . 69 Thermal 22 | . 22 Explosive . | . . Electromagnetic . | . . Robot Hit Streak 7 | . 7 Robot Miss Streak 4 | . 4 Penetration Max . | . . Secondary Targets 1 | . 1 Max Gunslinging Chain 1 | . 1 Shots Hit Robots 50 | . 50 Core Hits 20 | . 20 Critical Kills . | . . Critical Parts Destroyed . | . . Critical Strikes 2 | . 2 Burn 2 | . 2 Melee Attacks . | . . Impact . | . . Slashing . | . . Piercing . | . . Sneak Attacks . | . . Combat Hostiles . | . . Follow-up Attacks . | . . Damage Inflicted 763 | . 763 Guns 282 | . 282 Cannons 481 | . 481 Explosions . | . . Melee . | . . Ramming . | . . Kinetic 610 | . 610 Thermal 153 | . 153 Explosive . | . . Electromagnetic . | . . Impact . | . . Slashing . | . . Piercing . | . . Highest Corruption . | . . Average Corruption . | . . Corruption Purged . | . . Corruption Blocked . | . . Overload Shots . | . . Overflow Damage . | . . Projectiles . | . . Explosions . | . . Melee . | . . Knockbacks 9 | . 9 Impact . | . . Kinetic 8 | . 8 Secondary 1 | . 1 Self-Inflicted Damage 101 | . 101 Shots 1 | . 1 Rammed . | . . Targets Rammed . | . . Kicked . | . . Crushed . | . . Highest Temperature 388 | . 388 Average Temperature 182 | . 182 Received Heat Transfer 351 | . 351 Effects 2 | . 2 Energy Bleed 1 | . 1 Interference 1 | . 1 Siege Activations . | . . Robots Corrupted . | . . Combat Hostiles . | . . Parts Fried . | . . Impact Corruptions . | . . Robots Melted . | . . Combat Hostiles . | . . Parts Melted 1 | . 1 Heat Transferred 592 | . 592 Parts Sabotaged . | . . Parts Stolen . | . . Parts Stripped . | . . Power Chain Reactions . | . . Alert | -11 -10 ------- Run | Yrd Mat Peak Influence 114 | . 114 Initial . | . . Average 47 | . 50 Maximum Alert Level . | . . Low Security (%) 100 | 100 100 Level 1 . | . . Level 2 . | . . Level 3 . | . . Level 4 . | . . Level 5 . | . . High Security . | . . Max Security . | . . Squads Dispatched 1 | . 1 Investigation 1 | . 1 Extermination . | . . Reinforcement . | . . Assault . | . . Garrison . | . . Intercept . | . . Searches Triggered . | . . Construction Impeded . | . . Haulers Reinforced . | . . Active Scanning Responses . | . . Cargo Convoy Interrupts . | . . Stealth | -11 -10 --------- Run | Yrd Mat Distress Signals 1 | . 1 Communications Jammed . | . . Distress Signals . | . . Times Spotted 9 | . 9 Peak Tracking Total 3 | . 3 Tactical Retreats . | . . Traps | -11 -10 ------- Run | Yrd Mat Traps Triggered 1 | . 1 Indirectly . | . . Trap Hack Attempts . | . . Triggered . | . . Disarmed . | . . Reprogrammed . | . . Reused . | . . Traps Extracted . | . . Installed . | . . Triggered . | . . Machines | -11 -10 ---------- Run | Yrd Mat Machines Disabled 1 | . 1 Max in Single Turn 1 | . 1 Machines Repaired . | . . Machines Dismantled . | . . Machines Sabotaged . | . . Overloaded Fab Kills . | . . Hacking | -11 -10 --------- Run | Yrd Mat Machines Accessed 1 | . 1 Terminals . | . . Fabricators . | . . Repair Stations . | . . Recycling Units 1 | . 1 Scanalyzers . | . . Garrison Access . | . . Total Hacks 1 | . 1 Successful 1 | . 1 Failed . | . . Catastrophic . | . . Database Lockouts . | . . Manual . | . . Terminals . | . . Fabricators . | . . Repair Stations . | . . Recycling Units 1 | . 1 Scanalyzers . | . . Garrison Access . | . . Terminal Hacks . | . . Fabricator Hacks . | . . Repair Station Hacks . | . . Recycling Unit Hacks 1 | . 1 Report Inventory 1 | . 1 Scanalyzer . | . . Garrison Access Hacks . | . . Unauthorized Hacks . | . . Terminals . | . . Fabricators . | . . Repair Stations . | . . Recycling Units . | . . Scanalyzers . | . . Garrison Access . | . . Data Cores Recovered . | . . Used . | . . Hacking Detections . | . . Full Trace Events . | . . Feedback Events . | . . Feedback Blocked . | . . Robot Schematics Acquired . | . . Robots Built . | . . Authchips . | . . Time . | . . Total Robot Build Rating . | . . Part Schematics Acquired . | . . Parts Built . | . . Authchips . | . . Time . | . . Total Part Build Rating . | . . Parts Repaired . | . . Time . | . . Parts Recycled . | . . Recycled Matter . | . . Retrieved Matter . | . . Retrieved Components . | . . Parts Scanalyzed . | . . Part Schematics Acquired . | . . Parts Damaged . | . . Bothacking | -11 -10 ------------ Run | Yrd Mat Used RIF Installer . | . . Robots Hacked . | . . Non-combat . | . . Combat . | . . Robot Hacks Applied . | . . Relay Couplers Released . | . . Fabnet Peak Effective % . | . . Robots Rewired . | . . Allies Hacked . | . . Hacks Repelled . | . . Allies | -11 -10 -------- Run | Yrd Mat Total Allies . | . . Largest Group . | . . Highest-Rated Group . | . . Highest-Rated Ally . | . . Total Orders . | . . Ally Attacks . | . . Total Damage . | . . Kills . | . . Allies Corrupted . | . . Allies Melted . | . . Intel | -11 -10 ------- Run | Yrd Mat Robot Analysis Total . | . . Derelict Logs Recovered . | . . Drone Launches . | . . Drone Recoveries . | . . Exploration | -11 -10 ------------- Run | Yrd Mat Turns Passed 523 | 35 488 Spaces Moved 337 | 32 305 Core 13 | 13 . Treads . | . . Legs . | . . Wheels 324 | 19 305 Hover . | . . Flight . | . . Fastest Speed 50 | 50 90 Average Speed 96 | 82 97 Slowest Speed 100 | 100 100 Overloaded Moves . | . . Propulsion Burnouts . | . . Robots Hopped . | . . Cave-ins Triggered . | . . Exploration Rate (%) 25 | 4 46 Regions Visited 1 Branch Regions . Pre-discovered Areas . | . . Known Exits Taken . | . . Unknown Exits Taken 1 | 1 . Scrap Searched . | . . Spaces Dug . | . . Terrain Destroyed 3 | . 3 Melee . | . . Projectile 3 | . 3 AOE . | . . Terrain Rammed . | . . Walls Destroyed . | . . Machines Disabled . | . . Actions | -11 -10 --------- Run | Yrd Mat Total 446 | 37 409 Wait 32 | . 32 Move 336 | 31 305 Hop . | . . Pick Up 7 | . 7 Fast Attach 10 | 6 4 Attach . | . . Detach . | . . Swap 6 | . 6 Drop 6 | . 6 Fire 49 | . 49 Melee . | . . Ram . | . . Kick . | . . Crush . | . . Escape Stasis . | . . Rewire . | . . Trap . | . . Miscellaneous . | . . Route ------- -11/Scrapyard -10/Materials (discovered 2 exits: [*Mat] / [*Min]) History --------- Turn | Location | Event 19 | -11/Scrapyard | Discovered new exit (range 16) 36 | -11/Scrapyard | Entered Materials 96 | -10/Materials | Discovered new exit (range 15) 179 | -10/Materials | Core integrity fell below 50% 312 | -10/Materials | Build established: Mutant 336 | -10/Materials | Discovered new exit (range 11) 524 | -10/Materials | Destroyed self via exploding Fusion Modulator Last Messages --------------- 00421_ R-06 Scavenger collects Terrain Scanner. 00425_ R-06 Scavenger collects Terrain Scan Processor. 00453_ G-34 Mercenary knocked back. 00463_ G-47 Trooper knocked back. 00472_ G-34 Mercenary destroyed. 00475_ Acquired 26 matter. 00475_ U-05 Engineer builds a Door. 00478_ G-47 Trooper destroyed. 00481_ U-05 Engineer destroyed. 00484_ Acquired 13 matter. 00489_ Acquired 15 matter. 00492_ Acquired 3 matter. 00493_ Acquired 6 matter. 00497_ U-05 Engineer builds a Door. 00498_ W-16 Scout knocked back. 00502_ U-05 Engineer builds a Wall. 00503_ Acquired 5 matter. 00517_ G-34 Mercenary destroyed. 00523_ G-47 Trooper knocked back. 00524_ Fusion Modulator explodes. Map ----- +----------------------------------------------------+ | #??# # #??????????" #????????????????????? | | #??# # #?????????? #????????????????????? | | ######+#### #?????????? #????????????????????? | | ! #?????????? < #????????????????????? | | ### * % ##????????? #????????????????????? | | #?# #????????? ?????????????????????? | | #?# % #?????????" ?????????????????????? | | ??# = #?????????# ###???????????????????? | | ### ##########?????????# # ????????????????????? | | # ######????######## +?????????????????????? | | # ###### # #?????????????????????? | | + # #?????????????????????? | | # ###### # #?????????????????????? | | # ####|#?#### # #?????????????????????? | | ###/######%###%"# + #?????????????????????? | | ??# =+! [!* / # #?????????????????????? | | ??# """ ###############u #?????????????????????? | | ??# "R" #?????????????# k#?????????????????????? | | ??# " " #?????????????# #?????????????????????? | | ??# #?????????????# t#?????????????????????? | | ??# ] #?????????????# #?????????????????????? | | ??########?????????????# ######????????????????? | | ###????????????????????# #????????????????? | | #????????????????????# #????????????????? | | " #????????????????????+ #????????????????? | | Y #????????????????????# @ +????????????????? | | " #????????????????????# #????????????????? | | #????????????????????# ! #????????????????? | | #????????????????????# #????????????????? | | #????????????????????# g % #???????????????? | | #????????????????????+ ??????????????? | | =#????????????????????# ????????????? | | ###????????????????????# ???????????? | | ???????????????????????# "T" ;####???????????? | | ???????????????????????+ ##########??????????????? | | ???????????????????????#+????????????????????????? | | ?????????????????????????????????????????????????? | | ?????????????????????????????????????????????????? | | ?????????????????????????????????????????????????? | | ?????????????????????????????????????????????????? | | ?????????????????????????????????????????????????? | | | | | | | | | | | | | | | | | | | +----------------------------------------------------+ Best States ------------- Heat Dissipation 39 Energy Generation 10 Energy Capacity 250 Matter Stores 300 Matter Capacity 300 Sight Range 16 Terrain Scan Density 10 Weapon Shielding 33 Evasion (%) 50 Item Schematics ----------------- None Robot Schematics ------------------ None Fabricated ------------ Nothing Alien Tech Used ----------------- None Achievements -------------- None Challenges ------------ None Game ------ Seed ArmoredImprinterBay Manual? 0 Play Time 00:09:35 Cumulative 192.8 hours Start 2024.03.23 @ 12:34:57 End 2024.03.23 @ 12:40:03 Sessions 1 Manual Loads 0 Difficulty Rogue Special Mode None Game No. 139 Rogue 127 Adventurer 12 Explorer 0 Win Type - Total 1 Types 1/0/0/0/0/0/0/0/0 Lore% 26 Gallery% 42 Achievement% 32 Wizard Run 0 Options --------- Layout 1 ASCII 0 Keyboard 0 Movement Mouse Keybinds 0 Fullscreen 1 Font 32/SmallcapsGlow Map View 77x35 Zoom Use 0% Tactical HUD 1 Map Filters NONE Filters NONE Steam 1 RUN: cdf10206-15de-4e48-96c0-9ab9694bf8bd